bitfinex-derivatives/quotes_SOLF0:USTF0_20260203
["timestamp","ask_amount","ask_price","bid_price","bid_amount"]
[1770087664312,3.46094115,102.46,102.39,27.85495933]
[1770087665014,3.62134711,102.51,102.43,3.58984956]
[1770087665616,136.8419,102.41,102.3,29.01559083]
[1770087665808,313.54,102.4,102.32,29.01559083]
[1770087666016,136.8242,102.42,102.32,29.01559083]
[1770087666017,144.47139074,102.41,102.32,29.01559083]
[1770087666313,8.7984,102.39,102.32,29.01559083]
[1770087667014,389.62,102.43,102.34,28.98076316]
[1770087667524,8.7958,102.42,102.34,28.98076316]
[1770087668316,144.47269074,102.41,102.31,28.98076316]
[1770087668518,663.3152,102.4,102.31,28.98076316]
[1770087669019,273.7152,102.4,102.31,28.98076316]
[1770087669212,389.6,102.39,102.31,28.98076316]
[1770087669611,398.3981,102.4,102.31,28.98076316]
[1770087669816,398.3981,102.4,102.32,28.76614214]
[1770087670714,389.62,102.41,102.32,28.76614214]
[1770087670911,398.4163,102.42,102.32,28.76614214]
[1770087671316,389.62,102.43,102.34,28.79331311]
[1770087671715,8.7947,102.44,102.34,28.79331311]
[1770087671921,398.4147,102.44,102.34,28.79331311]
[1770087673118,8.7947,102.44,102.36,28.79891879]
[1770087675424,136.8239,102.42,102.33,28.80105202]
[1770087675623,144.45159074,102.43,102.33,28.80105202]
[1770087675925,8.7957,102.42,102.33,28.80105202]
[1770087677820,237.81479074,102.43,102.33,28.80105202]
[1770087677821,8.7965,102.41,102.33,28.80105202]
[1770087681624,8.7965,102.41,102.34,28.77809719]
[1770087682827,534.03759074,102.45,102.35,28.84869207]
[1770087684332,8.7948,102.43,102.36,28.84869207]
[1770087685133,389.6,102.46,102.36,28.84869207]
[1770087685327,7.63479074,102.5,102.39,28.82480166]
[1770087685631,136.7131,102.51,102.41,28.82480166]
[1770087687336,8.7896,102.49,102.42,28.85527387]
[1770087689534,8.7889,102.5,102.43,28.86108626]
[1770087689929,136.6962,102.52,102.43,28.86108626]
[1770087691338,8.788,102.51,102.44,28.86148758]
[1770087691733,136.7065,102.51,102.44,28.86148758]
[1770087692039,8.7905,102.48,102.44,28.86148758]
[1770087693133,136.7334,102.49,102.39,28.87829329]
[1770087694039,8.7914,102.47,102.39,28.87829329]
[1770087695340,8.7914,102.47,102.4,28.87720618]
[1770087695838,8.7922,102.46,102.4,28.87720618]
[1770087698544,148.17123742,102.49,102.4,28.87720618]
[1770087698840,526.158,102.5,102.41,28.8786175]
[1770087699144,8.791,102.48,102.41,28.8786175]
[1770087701847,8.7914,102.47,102.41,28.8786175]
[1770087702241,136.718,102.5,102.41,28.8786175]
[1770087703341,136.7418,102.48,102.39,28.88062099]
[1770087704351,8.7931,102.45,102.39,28.88062099]
[1770087705546,8.792,102.47,102.39,28.88062099]
[1770087705750,8.792,102.47,102.4,28.84514897]
[1770087709951,8.7925,102.46,102.4,28.84514897]
[1770087712755,8.7932,102.45,102.4,28.84514897]
[1770087713749,136.7561,102.47,102.38,58.07872479]
[1770087713948,526.1361,102.47,102.38,28.81872479]
[1770087714455,389.38,102.47,102.38,28.81872479]
[1770087714654,389.38,102.47,102.39,28.79691816]
[1770087715053,398.172,102.47,102.39,28.79691816]
[1770087715458,8.792,102.47,102.39,28.79691816]
[1770087716958,8.7923,102.46,102.39,28.79691816]
[1770087718459,8.7923,102.46,102.4,28.85877967]
[1770087719065,136.7557,102.47,102.4,28.85877967]
[1770087720462,8.7937,102.45,102.4,28.85877967]
[1770087720660,136.7557,102.47,102.4,28.85877967]
[1770087720856,136.7725,102.46,102.37,40.29923918]
[1770087721057,136.8221,102.42,102.35,28.8630655]
[1770087721256,136.8355,102.41,102.35,28.8630655]
[1770087721457,8.8001,102.37,102.31,28.8630655]
[1770087721660,148.28537368,102.4,102.31,28.8630655]
[1770087722465,136.849,102.4,102.32,28.8630655]
[1770087723363,8.7992,102.38,102.32,28.8630655]
[1770087726258,136.849,102.4,102.32,28.8630655]
[1770087726464,8.8,102.37,102.32,28.8630655]
[1770087727876,8.799,102.39,102.32,28.8630655]
[1770087728071,148.28517368,102.4,102.32,28.8630655]
[1770087728774,8.7998,102.38,102.32,28.8630655]
[1770087729569,8.8,102.37,102.32,28.8630655]
[1770087730174,8.7992,102.38,102.32,28.8630655]
[1770087732770,148.31567368,102.38,102.3,28.79238086]
[1770087733767,136.8935,102.37,102.3,28.79238086]
[1770087733973,136.9057,102.36,102.28,28.79238086]
[1770087734874,8.8035,102.33,102.28,28.79238086]
[1770087735477,8.8026,102.34,102.28,28.79238086]
[1770087736269,8.8035,102.33,102.28,28.79238086]
[1770087737176,8.8026,102.34,102.28,28.79238086]
[1770087737383,526.5135,102.37,102.28,28.79238086]
[1770087737776,8.8018,102.35,102.28,8.8076]
[1770087737976,8.8018,102.35,102.29,28.84808004]
[1770087739482,8.801,102.36,102.29,28.84808004]
[1770087739985,8.801,102.36,102.3,28.89025261]
[1770087740775,8.7999,102.37,102.3,37.69615261]
[1770087740979,8.7999,102.37,102.31,28.89520589]
[1770087744181,8.7999,102.37,102.27,137.0195]
[1770087744182,273.8722,102.34,102.24,28.87871392]
[1770087744384,11.43617368,102.31,102.24,28.87871392]
[1770087744582,157.21277368,102.31,102.21,28.85237875]
[1770087744790,136.9713,102.31,102.21,28.85237875]
[1770087744983,148.39507368,102.32,102.21,28.85237875]
[1770087745186,148.39507368,102.32,102.22,28.85237875]
[1770087745391,157.28267368,102.26,102.16,2.77948636]
[1770087745588,148.53947368,102.21,102.09,148.69997368]
[1770087745786,145.9033,102.22,102.11,11.43617368]
[1770087745988,145.9035,102.22,102.11,11.43617368]
[1770087746188,137.0609,102.25,102.13,137.2088]
[1770087746384,137.0609,102.25,102.13,177.14]
[1770087746590,274.2417,102.2,102.07,314.6461]
[1770087746782,148.52707368,102.22,102.1,137.2502]
[1770087746986,137.0645,102.24,102.13,11.43617368]
[1770087747184,137.0515,102.25,102.13,11.43617368]
[1770087747185,518.20257368,102.26,102.15,11.43617368]
[1770087747386,137.0526,102.25,102.16,20.62619065]
[1770087747785,506.7664,102.26,102.16,20.62619065]
[1770087747982,137.0497,102.25,102.16,20.62619065]
[1770087748193,137.0511,102.25,102.16,20.62619065]
[1770087748580,369.72,102.26,102.17,11.43617368]
[1770087748786,369.72,102.26,102.18,20.69976623]
[1770087748983,136.9944,102.3,102.2,20.69976623]
[1770087749189,136.9857,102.3,102.22,20.69976623]
[1770087749383,136.9974,102.29,102.22,20.69976623]
[1770087749590,137.0099,102.28,102.22,20.69976623]
[1770087749986,137.0099,102.28,102.2,20.69976623]
[1770087750186,137.0278,102.27,102.2,20.69976623]
[1770087751088,145.8179,102.28,102.2,20.69976623]
[1770087751288,136.9974,102.29,102.2,20.69976623]
[1770087751793,136.9659,102.32,102.22,20.64202]
[1770087751991,145.7703,102.32,102.22,20.64202]
[1770087753890,8.8044,102.32,102.22,20.64202]
[1770087757301,8.8044,102.32,102.23,197.86602468]
[1770087757702,535.7231,102.34,102.24,20.64602468]
[1770087757897,526.9199,102.34,102.24,20.64602468]
[1770087758999,8.8036,102.33,102.25,20.64573335]
[1770087759397,148.37927368,102.33,102.22,20.64573335]
[1770087759598,148.37927368,102.33,102.22,29.45813335]
[1770087759599,8.806,102.3,102.22,29.45813335]
[1770087759903,11.43617368,102.31,102.23,20.64573335]
[1770087760102,136.9431,102.33,102.25,29.45573335]
[1770087760103,8.804,102.33,102.25,29.45573335]
[1770087760504,11.43617368,102.36,102.26,20.59853292]
[1770087760698,8.8024,102.35,102.27,29.40703292]
[1770087760899,148.33927368,102.36,102.27,29.40703292]
[1770087761097,136.8901,102.37,102.28,20.59853292]
[1770087761299,8.8019,102.35,102.28,20.59853292]
[1770087761905,8.8027,102.34,102.26,20.59853292]
[1770087762105,11.43617368,102.36,102.27,20.59853292]
[1770087762903,148.33917368,102.36,102.27,20.59853292]
[1770087764004,8.8026,102.34,102.27,29.40703292]
[1770087764405,11.43617368,102.36,102.27,29.40703292]
[1770087764712,136.8901,102.37,102.26,137.0355]
[1770087764713,8.8019,102.35,102.28,29.40144846]
[1770087765099,8.8007,102.37,102.3,20.59404846]
[1770087765298,11.43617368,102.4,102.31,20.59404846]
[1770087766010,8.7982,102.39,102.31,29.39914846]
[1770087766700,8.7975,102.4,102.32,29.40033199]
[1770087766904,8.7975,102.4,102.33,6.0]
[1770087767104,148.28567368,102.4,102.33,6.0]
[1770087767305,8.8,102.37,102.33,6.0]
[1770087768112,8.8009,102.36,102.3,20.59623199]
[1770087768303,11.43617368,102.38,102.3,20.59623199]
[1770087769313,8.8,102.37,102.3,29.40193199]
[1770087769506,148.28567368,102.4,102.31,20.53645881]
[1770087770408,8.7982,102.39,102.31,29.34145881]
[1770087770805,148.28527368,102.4,102.31,29.34145881]
[1770087771511,148.31237368,102.38,102.29,29.35791272]
[1770087772513,8.8008,102.36,102.29,29.35791272]
[1770087773106,11.43617368,102.35,102.26,20.47044878]
[1770087773407,148.35447368,102.35,102.26,20.47044878]
[1770087773812,8.8026,102.34,102.27,20.47044878]
[1770087774207,136.8896,102.37,102.27,20.47044878]
[1770087774411,8.8026,102.34,102.27,29.27864878]
[1770087774610,136.9157,102.35,102.27,20.47044878]
[1770087775110,8.8025,102.34,102.27,29.27894878]
[1770087776115,8.8025,102.34,102.27,20.47044878]
[1770087776717,8.8034,102.33,102.27,20.47044878]
[1770087777116,148.42295838,102.32,102.23,20.42779054]
[1770087778517,8.806,102.3,102.23,29.23979054]
[1770087779913,8.8051,102.31,102.23,29.23979054]
[1770087780120,148.42315838,102.32,102.23,29.23979054]
[1770087780610,8.806,102.3,102.23,20.42779054]
[1770087781416,8.806,102.3,102.23,29.23939054]
[1770087781712,8.806,102.3,102.23,8.8116]
[1770087781912,8.806,102.3,102.24,20.40951686]
[1770087782610,8.806,102.3,102.24,17.43951686]
[1770087783120,8.8068,102.29,102.22,8.8128]
[1770087783614,11.46655838,102.31,102.21,137.1023]
[1770087783814,148.39885838,102.34,102.23,137.0754]
[1770087784615,148.39885838,102.34,102.24,18.90806709]
[1770087785119,8.8042,102.33,102.25,27.71826709]
[1770087785421,148.37835838,102.36,102.26,18.90806709]
[1770087786314,8.8025,102.34,102.27,8.8084]
[1770087786520,148.40115838,102.34,102.26,18.90806709]
[1770087787216,148.39765838,102.34,102.24,18.93002831]
[1770087788321,8.8043,102.32,102.25,27.74022831]
[1770087788511,11.46655838,102.34,102.26,18.9324935]
[1770087789017,8.8026,102.34,102.28,18.9324935]
[1770087791021,11.46655838,102.38,102.29,18.93388176]
[1770087791821,526.859,102.4,102.31,18.93388176]
[1770087791822,538.32555838,102.4,102.31,18.93388176]
[1770087792225,136.8442,102.41,102.32,18.93388176]
[1770087792619,8.7983,102.39,102.32,27.73808176]
[1770087792821,8.7983,102.39,102.33,18.94720585]
[1770087793323,8.7972,102.41,102.33,27.75010585]
[1770087793524,148.29965838,102.42,102.33,27.75010585]
[1770087795427,8.7978,102.4,102.33,27.75010585]
[1770087796622,8.7978,102.4,102.34,27.67250644]
[1770087796824,11.46655838,102.44,102.35,18.87010644]
[1770087797019,11.46655838,102.44,102.36,18.87010644]
[1770087797020,148.26195838,102.44,102.36,18.87010644]
[1770087797428,136.8089,102.43,102.36,18.87010644]
[1770087798126,8.7957,102.42,102.36,18.87010644]
[1770087798324,136.8093,102.43,102.33,155.81060644]
[1770087798622,11.46655838,102.42,102.33,18.87010644]
[1770087798929,8.7965,102.41,102.34,8.8025]
[1770087799725,8.7965,102.41,102.35,8.8015]
[1770087799924,8.7965,102.41,102.35,27.65936924]
[1770087801728,8.7956,102.43,102.36,8.8005]
[1770087801929,148.26195838,102.44,102.36,8.8005]
[1770087802723,8.7964,102.42,102.36,8.8005]
[1770087803128,210.26195838,102.44,102.36,8.8005]
[1770087803330,8.7966,102.41,102.35,27.65936924]
[1770087803829,210.26195838,102.44,102.36,8.8006]
[1770087803830,8.7957,102.42,102.36,8.8006]
[1770087804628,8.7966,102.41,102.36,8.8006]
[1770087804830,136.8236,102.42,102.35,18.85786924]
[1770087805025,136.8093,102.43,102.35,18.85786924]
[1770087806026,11.46655838,102.44,102.36,18.79318765]
[1770087806226,136.7931,102.45,102.36,18.79318765]
[1770087807330,8.7949,102.43,102.37,8.7991]
[1770087807627,8.7949,102.43,102.37,27.57469337]
[1770087808923,8.7949,102.43,102.38,8.799]
[1770087811723,8.794,102.44,102.4,18.77445793]
[1770087811927,8.39897785,102.44,102.4,18.77445793]
[1770087812930,389.76,102.47,102.4,27.57165793]
[1770087814033,148.23505838,102.46,102.39,8.798]
[1770087814235,148.23505838,102.46,102.38,18.7885245]
[1770087814831,8.7946,102.44,102.38,27.5875245]
[1770087816333,8.7948,102.43,102.38,27.5875245]
[1770087816528,11.46655838,102.44,102.37,18.80467265]
[1770087816832,11.46655838,102.44,102.35,18.80467265]
[1770087817032,148.26455838,102.44,102.36,8.8008]
[1770087817234,11.46655838,102.44,102.36,27.60547265]
[1770087818435,8.7964,102.42,102.36,27.60547265]
[1770087819329,8.7964,102.42,102.37,18.80267498]
[1770087821027,8.7957,102.42,102.37,18.80267498]
[1770087821334,273.6332,102.43,102.35,18.80694321]
[1770087821531,11.46655838,102.42,102.35,18.80694321]
[1770087822136,8.7974,102.4,102.35,18.80694321]
[1770087822935,148.32075838,102.4,102.32,8.8035]
[1770087823131,148.32075838,102.4,102.32,27.6074435]
[1770087823329,11.46655838,102.4,102.24,18.8039435]
[1770087823530,11.46655838,102.34,102.26,27.6130435]
[1770087823727,11.46655838,102.34,102.24,155.8553435]
[1770087823934,11.46655838,102.32,102.25,18.8039435]
[1770087824231,468.28265838,102.34,102.25,18.8039435]
[1770087824434,468.28265838,102.34,102.26,18.79327444]
[1770087824831,11.46655838,102.32,102.26,18.79327444]
[1770087825033,20.27095838,102.32,102.26,18.79327444]
[1770087825733,8.8053,102.31,102.23,18.79327444]
[1770087825927,11.46655838,102.32,102.23,18.79327444]
[1770087826130,8.8055,102.31,102.23,18.79327444]
[1770087826339,148.43575838,102.31,102.21,18.79327444]
[1770087826536,136.9538,102.33,102.23,18.82142095]
[1770087826537,527.80035838,102.33,102.23,18.82142095]
[1770087826836,389.7,102.34,102.25,18.82142095]
[1770087827037,389.7,102.34,102.26,30.28797933]
[1770087827226,145.7051,102.36,102.27,18.82142095]
[1770087827531,389.7,102.38,102.31,18.82142095]
[1770087827737,136.8007,102.44,102.35,18.82142095]
[1770087827927,526.5493,102.43,102.35,18.82142095]
[1770087828127,136.8221,102.42,102.35,18.82142095]
[1770087828329,136.8361,102.41,102.35,18.82142095]
[1770087828530,136.8772,102.38,102.3,18.8941948]
[1770087828736,136.9432,102.33,102.25,18.8941948]
[1770087828934,136.9319,102.34,102.25,18.8941948]
[1770087829138,157.18905838,102.35,102.25,18.8941948]
[1770087829337,546.96905838,102.35,102.25,18.8941948]
[1770087829541,398.5822,102.35,102.27,18.8941948]
[1770087830131,145.7182,102.35,102.27,18.8941948]
[1770087830640,8.8022,102.35,102.27,18.8941948]
[1770087831538,145.7377,102.34,102.27,18.8941948]
[1770087832232,8.8037,102.33,102.27,18.8941948]
[1770087832539,145.7497,102.33,102.27,18.8941948]
[1770087832741,145.7497,102.33,102.24,18.91149578]
[1770087832936,145.7626,102.32,102.24,18.91149578]
[1770087833332,136.9703,102.31,102.24,18.91149578]
[1770087834336,8.8062,102.3,102.24,18.91149578]
[1770087835039,145.79,102.3,102.24,18.91149578]
[1770087835240,8.8062,102.3,102.24,18.91149578]
[1770087835642,137.0252,102.27,102.19,9.88150775]
[1770087835839,137.0679,102.24,102.14,56.89173431]
[1770087836038,137.0849,102.23,102.14,56.89173431]
[1770087836338,137.0502,102.25,102.14,56.89173431]
[1770087836339,526.9044,102.26,102.17,56.89173431]
[1770087836642,389.86,102.26,102.17,68.37771433]
[1770087837135,137.014,102.28,102.19,56.89832119]
[1770087837336,535.697,102.28,102.2,68.38430121]
[1770087838137,137.0076,102.29,102.2,56.89832119]
[1770087838341,526.9328,102.28,102.2,56.89832119]
[1770087838541,137.0364,102.26,102.16,56.91465051]
[1770087838742,145.8346,102.27,102.18,68.40063053]
[1770087838943,137.0381,102.26,102.18,56.91465051]
[1770087839442,389.96,102.25,102.18,56.91465051]
[1770087839839,527.0097,102.25,102.18,56.91465051]
[1770087840341,527.0097,102.25,102.14,137.1908]
[1770087840342,389.98,102.24,102.17,68.40132422]
[1770087840542,527.044,102.24,102.17,56.9153442]
[1770087840940,389.98,102.24,102.17,56.9153442]
[1770087841239,137.0106,102.28,102.2,56.9153442]
[1770087841443,390.04,102.27,102.2,56.9153442]
[1770087841639,137.0064,102.29,102.2,68.40132422]
[1770087841842,137.0243,102.27,102.2,56.9153442]
[1770087842040,398.8488,102.27,102.2,56.9153442]
[1770087842240,145.8321,102.27,102.2,56.9153442]
[1770087842442,390.06,102.27,102.2,68.40132422]
[1770087843143,535.8928,102.27,102.2,56.9153442]
[1770087843540,527.0839,102.27,102.2,56.9153442]
[1770087843741,398.8697,102.26,102.2,56.9153442]
[1770087845842,8.808,102.28,102.2,56.9153442]
[1770087846343,8.8087,102.27,102.2,56.9153442]
[1770087846545,398.9087,102.27,102.2,56.9153442]
[1770087848038,137.056,102.25,102.18,57.08392953]
[1770087848238,527.1862,102.24,102.15,57.08392953]
[1770087848442,137.0791,102.23,102.15,57.08392953]
[1770087849047,8.8138,102.21,102.15,57.08392953]
[1770087849441,137.09,102.22,102.15,57.08392953]
[1770087849642,137.1361,102.19,102.12,57.0943585]
[1770087849844,137.1853,102.15,102.06,57.0943585]
[1770087850049,398.9598,102.14,102.06,57.0943585]
[1770087850255,390.14,102.14,102.06,57.0943585]
[1770087850447,390.14,102.14,102.06,68.58033852]
[1770087851149,390.14,102.14,102.06,57.0943585]
[1770087851544,360.76818004,102.14,102.06,57.0943585]
[1770087852141,137.1718,102.16,102.06,57.0943585]
[1770087852340,8.8204,102.14,102.06,57.0943585]
[1770087852947,351.42,102.15,102.07,68.57037803]
[1770087853955,527.4174,102.17,102.07,68.57037803]
[1770087854154,137.1574,102.17,102.07,68.57037803]
[1770087854351,527.0574,102.17,102.08,57.08439801]
[1770087855355,389.9,102.17,102.1,57.06448282]
[1770087855753,398.7172,102.17,102.1,57.06448282]
[1770087856753,389.9,102.17,102.1,57.06448282]
[1770087858055,8.8191,102.15,102.1,57.06448282]
[1770087858254,389.9,102.17,102.1,57.06448282]
[1770087858749,8.8181,102.16,102.1,57.06448282]
[1770087860045,527.0578,102.17,102.1,57.06448282]
[1770087860046,389.9,102.17,102.1,57.06448282]
[1770087860247,137.1047,102.21,102.12,56.97127304]
[1770087860550,527.5247,102.21,102.12,56.97127304]
[1770087861246,8.8155,102.19,102.12,56.97127304]
[1770087861448,390.42,102.21,102.14,56.96452956]
[1770087861845,399.2339,102.21,102.14,56.96452956]
[1770087862555,137.1171,102.2,102.11,56.95523678]
[1770087863154,137.1171,102.2,102.11,65.77753678]
[1770087863450,527.5571,102.2,102.11,65.77753678]
[1770087863653,137.1171,102.2,102.11,65.77753678]
[1770087863851,137.1341,102.19,102.11,56.95523678]
[1770087864152,137.1434,102.18,102.11,56.95523678]
[1770087864356,137.1341,102.19,102.11,56.95523678]
[1770087865454,8.818,102.17,102.11,56.95523678]
[1770087867556,8.8163,102.18,102.11,56.95523678]
[1770087868254,8.8163,102.18,102.11,65.77753678]
[1770087869659,148.57398002,102.23,102.13,56.88812613]
[1770087869856,137.0745,102.24,102.15,56.88812613]
[1770087870062,137.0557,102.25,102.15,56.88812613]
[1770087870357,137.0557,102.25,102.17,56.88812613]
[1770087870562,137.0638,102.24,102.17,56.88812613]
[1770087870860,137.0557,102.25,102.17,56.88812613]
[1770087871063,8.8129,102.22,102.17,56.88812613]
[1770087871763,137.0899,102.22,102.14,56.88043591]
[1770087872462,8.8154,102.2,102.14,56.88043591]
[1770087872657,137.1074,102.21,102.14,56.88043591]
[1770087872863,137.1177,102.2,102.14,56.88043591]
[1770087873063,137.1074,102.21,102.14,56.88043591]
[1770087873565,137.1171,102.2,102.14,56.88043591]
[1770087874362,8.8164,102.18,102.14,56.88043591]
[1770087874861,8.8173,102.17,102.12,56.88553435]
[1770087875965,137.1171,102.2,102.09,77.19481437]
[1770087875966,137.1485,102.18,102.09,77.19481437]
[1770087876259,137.1485,102.18,102.1,56.88553435]
[1770087877060,527.5717,102.19,102.1,56.88553435]
[1770087878362,8.8181,102.16,102.1,56.88553435]
[1770087879369,8.8172,102.17,102.1,65.70863435]
[1770087879564,527.5717,102.19,102.1,56.88553435]
[1770087880869,137.1074,102.21,102.12,56.92065856]
[1770087881565,8.8163,102.18,102.12,56.92065856]
[1770087881766,137.1332,102.19,102.12,56.92065856]
[1770087882367,8.8179,102.17,102.12,56.92065856]
[1770087883870,8.8181,102.16,102.12,56.92065856]
[1770087884770,8.819,102.15,102.1,56.93565606]
[1770087888981,8.8182,102.16,102.1,56.93565606]
[1770087891180,8.819,102.15,102.1,56.93565606]
[1770087894686,8.8198,102.14,102.1,56.93565606]
[1770087895183,8.8225,102.11,102.06,56.83341749]
[1770087896088,137.1867,102.15,102.06,56.83341749]
[1770087896286,137.1408,102.19,102.08,56.83341749]
[1770087896592,148.61038002,102.2,102.12,56.81957852]
[1770087896593,8.8164,102.18,102.12,56.81957852]
[1770087897083,137.1244,102.2,102.12,56.81957852]
[1770087897292,137.1126,102.21,102.12,56.81957852]
[1770087898188,137.1391,102.19,102.12,56.81957852]
[1770087898390,137.1439,102.18,102.12,56.81957852]
[1770087899388,8.8181,102.16,102.12,56.81957852]
[1770087900486,137.0867,102.23,102.12,68.32391962]
[1770087900686,137.0801,102.23,102.15,56.93628834]
[1770087900887,137.103,102.21,102.15,56.93628834]
[1770087901091,137.1192,102.2,102.13,56.93628834]
[1770087901391,137.13,102.19,102.13,56.93628834]
[1770087901588,8.8163,102.18,102.13,56.93628834]
[1770087902086,527.643,102.21,102.13,56.93628834]
[1770087902291,137.103,102.21,102.13,56.93628834]
[1770087902586,137.1201,102.2,102.13,56.93628834]
[1770087902791,8.8152,102.2,102.13,56.93628834]
[1770087903593,390.54,102.23,102.13,68.44062944]
[1770087903889,137.0925,102.22,102.14,56.87941804]
[1770087904094,8.8129,102.22,102.14,65.69921804]
[1770087904898,8.8129,102.22,102.16,56.86554058]
[1770087905591,8.8119,102.24,102.16,56.86554058]
[1770087905792,137.0376,102.26,102.17,56.86554058]
[1770087905986,137.0634,102.24,102.17,56.86554058]
[1770087906193,148.5546411,102.25,102.17,56.86554058]
[1770087906392,137.0497,102.25,102.17,56.86554058]
[1770087906592,137.0371,102.26,102.17,65.68224058]
[1770087907094,137.0636,102.24,102.17,56.86554058]
[1770087907398,137.0947,102.22,102.13,56.86564692]
[1770087908089,8.8134,102.22,102.13,65.68624692]
[1770087908296,148.5817411,102.23,102.13,56.86564692]
[1770087908887,148.5817411,102.23,102.13,68.36998802]
[1770087909290,137.0961,102.22,102.13,56.86564692]
[1770087909698,137.0925,102.22,102.13,68.36998802]
[1770087909994,137.0636,102.24,102.14,56.86875966]
[1770087910200,137.057,102.25,102.16,56.86875966]
[1770087910696,137.0211,102.28,102.18,56.75910461]
[1770087911091,137.0229,102.27,102.18,56.75910461]
[1770087911693,8.8087,102.27,102.18,65.57530461]
[1770087911890,137.0211,102.28,102.19,56.75910461]
[1770087912396,8.8077,102.28,102.19,56.75910461]
[1770087912597,11.5043411,102.31,102.21,56.72297771]
[1770087913797,8.806,102.3,102.21,56.72297771]
[1770087914298,8.806,102.3,102.21,65.53667771]
[1770087914898,8.806,102.3,102.21,56.72297771]
[1770087914899,136.9837,102.3,102.21,56.72297771]
[1770087915092,11.5043411,102.29,102.21,56.72297771]
[1770087916103,8.8082,102.28,102.21,56.72297771]
[1770087918700,8.8071,102.29,102.21,56.72297771]
[1770087919896,8.8071,102.29,102.22,8.8128]
[1770087920602,20.3114411,102.29,102.22,65.49572831]
[1770087920801,148.5287411,102.27,102.2,56.68292831]
[1770087921000,11.5043411,102.25,102.17,56.68292831]
[1770087921803,8.8112,102.24,102.17,65.50002831]
[1770087923202,11.5043411,102.25,102.17,56.68292831]
[1770087923899,11.5043411,102.25,102.17,65.50002831]
[1770087924105,137.0787,102.23,102.17,56.68292831]
[1770087924307,148.5830411,102.23,102.17,56.68292831]
[1770087924999,11.5043411,102.23,102.17,56.68292831]
[1770087926199,8.8129,102.22,102.17,56.68292831]
[1770087926500,527.3563,102.26,102.17,56.68292831]
[1770087926695,390.32,102.26,102.18,67.94060329]
[1770087927099,8.8105,102.25,102.19,65.25156219]
[1770087931700,207.36,102.35,102.19,56.43626219]
[1770087931902,136.9747,102.31,102.25,52.11188]
[1770087932100,136.96,102.32,102.25,52.11188]
[1770087932306,8.8069,102.29,102.25,52.11188]
[1770087932700,136.9722,102.31,102.25,52.11188]
[1770087932910,8.806,102.3,102.25,52.11188]
[1770087934604,8.8051,102.32,102.25,52.11188]
[1770087934902,136.9358,102.34,102.25,52.11188]
[1770087935107,8.8034,102.33,102.26,61.03901492]
[1770087935406,148.4012411,102.37,102.27,52.22981492]
[1770087936205,8.8007,102.37,102.29,61.03661492]
[1770087936502,136.89,102.37,102.29,52.22981492]
[1770087936702,145.6908,102.37,102.29,52.22981492]
[1770087936908,136.89,102.37,102.29,52.22981492]
[1770087937108,136.9163,102.35,102.26,52.11524261]
[1770087938306,8.8034,102.33,102.27,8.8077]
[1770087939511,136.9163,102.35,102.27,8.8077]
[1770087940413,8.8034,102.33,102.27,8.8077]
[1770087940815,8.8034,102.33,102.27,60.90522187]
[1770087945315,8.8025,102.34,102.28,60.90056638]
[1770087946318,527.0223,102.36,102.28,60.90056638]
[1770087946319,8.8035,102.33,102.28,52.09296638]
[1770087946913,136.9431,102.33,102.26,52.09387139]
[1770087948412,8.8054,102.31,102.26,52.09387139]
[1770087948827,8.8054,102.31,102.23,52.08724108]
[1770087948828,136.9698,102.31,102.23,52.08724108]
[1770087949821,136.9698,102.31,102.23,60.89924108]
[1770087950121,137.01,102.28,102.2,52.08724108]
[1770087951223,527.0979,102.29,102.2,52.08724108]
[1770087952517,152.26231056,102.31,102.22,52.08868019]
[1770087952518,527.0898,102.31,102.22,52.08868019]
[1770087952722,390.12,102.31,102.22,52.08868019]
[1770087953219,136.9564,102.32,102.22,52.08868019]
[1770087953424,390.14,102.31,102.22,52.08868019]
[1770087953925,136.983,102.3,102.22,52.08868019]
[1770087954119,137.0097,102.28,102.2,52.08868019]
[1770087954425,8.8095,102.26,102.2,52.08868019]
[1770087954823,390.14,102.27,102.2,52.08868019]
[1770087955325,8.808,102.28,102.22,60.89088324]
[1770087955526,390.16,102.29,102.22,60.89088324]
[1770087956337,398.9669,102.29,102.22,60.89088324]
[1770087957030,398.9669,102.29,102.23,8.8119]
[1770087957238,8.8069,102.29,102.23,60.91706828]